bitfinex/quotes_BTCUSD_20250205
["timestamp","ask_amount","ask_price","bid_price","bid_amount"]
[1738769964839,0.152838,98143.0,98135.0,0.10250365]
[1738769965033,0.00036418,98149.0,98135.0,0.10250365]
[1738769965034,0.152843,98140.0,98135.0,1.12377677]
[1738769966302,0.152849,98136.0,98135.0,1.12377677]
[1738769966547,0.152849,98136.0,98135.0,0.10250365]
[1738769967988,0.152849,98136.0,98110.0,0.11163276]
[1738769967989,0.1483454,98113.0,98107.0,0.05]
[1738769968227,0.152885,98113.0,98109.0,0.10250365]
[1738769968430,0.152875,98119.0,98109.0,0.10250365]
[1738769968603,0.05768841,98140.0,98111.0,0.20385]
[1738769968819,0.152874,98120.0,98112.0,0.25538965]
[1738769969015,0.01048841,98140.0,98113.0,0.10250365]
[1738769969216,0.152862,98128.0,98120.0,0.11163276]
[1738769969440,0.152862,98128.0,98121.0,0.10250365]
[1738769969700,0.203802,98134.0,98123.0,0.152868]
[1738769969918,0.203792,98139.0,98120.0,0.26450576]
[1738769969919,0.152845,98139.0,98130.0,0.152858]
[1738769970130,0.15285,98135.0,98131.0,0.10250365]
[1738769970399,0.152848,98137.0,98131.0,0.10250365]
[1738769970604,0.01068076,98144.0,98131.0,0.10250365]
[1738769970782,0.203784,98143.0,98131.0,0.10250365]
[1738769970979,0.01068076,98144.0,98131.0,0.10250365]
[1738769970980,0.203786,98142.0,98131.0,0.10250365]
[1738769971213,0.152851,98135.0,98131.0,0.10250365]
[1738769971763,0.203794,98138.0,98131.0,0.10250365]
[1738769971971,0.152853,98134.0,98131.0,0.10250365]
[1738769972171,0.152855,98132.0,98131.0,0.10250365]
[1738769972967,0.01068076,98144.0,98107.0,0.05]
[1738769972968,0.152891,98109.0,98107.0,0.05]
[1738769973173,0.152891,98109.0,98108.0,0.10261045]
[1738769973376,0.152891,98109.0,98108.0,0.0001068]
[1738769974004,0.302891,98109.0,98108.0,0.0001068]
[1738769974204,0.31297239,98109.0,98108.0,0.0001068]
[1738769974361,0.313019,98109.0,98108.0,0.0001068]
[1738769979751,0.397139,98109.0,98108.0,0.0001068]
[1738769979949,0.62414265,98109.0,98108.0,0.0001068]
[1738769980986,0.498639,98109.0,98108.0,0.0001068]
[1738769982055,0.521639,98109.0,98108.0,0.0001068]
[1738769982262,0.453439,98109.0,98108.0,0.0001068]
[1738769982560,0.476439,98109.0,98108.0,0.0001068]
[1738769982807,0.302919,98091.0,98090.0,0.0001068]
[1738769983010,0.378519,98091.0,98090.0,0.0001068]
[1738769985233,0.50402265,98091.0,98090.0,0.0001068]
[1738769985547,0.325931,98083.0,98082.0,1.524e-05]
[1738769987176,0.302931,98083.0,98082.0,1.524e-05]
[1738769988997,0.152931,98083.0,98082.0,1.524e-05]
[1738769989215,0.152931,98083.0,98082.0,0.10251889]
[1738769989621,4.661e-05,98109.0,98082.0,0.10251889]
[1738769989816,0.15182764,98109.0,98099.0,0.11163276]
[1738769990016,0.08076647,98125.0,98101.0,0.152903]
[1738769990243,0.35669,98124.0,98102.0,0.10250365]
[1738769990458,0.26163276,98130.0,98102.0,0.10250365]
[1738769990663,0.15,98138.0,98102.0,0.10250365]
[1738769990892,0.152886,98112.0,98102.0,0.25540365]
[1738769991070,0.213881,98139.0,98104.0,0.0489]
[1738769991223,0.152882,98115.0,98105.0,0.10352283]
[1738769991424,0.15288,98116.0,98105.0,0.10250365]
[1738769991624,0.152875,98120.0,98105.0,0.10250365]
[1738769991848,0.203794,98138.0,98106.0,0.00101918]
[1738769992143,0.15,98136.0,98107.0,0.10250365]
[1738769992569,0.152883,98114.0,98107.0,0.10250365]
[1738769992772,0.15,98132.0,98107.0,0.10250365]
[1738769992952,0.152877,98118.0,98108.0,0.00101918]
[1738769993150,0.15,98139.0,98109.0,0.10250365]
[1738769993491,0.152874,98120.0,98109.0,0.10250365]
[1738769993852,0.01036695,98144.0,98109.0,0.10352281]
[1738769994051,0.15287,98123.0,98110.0,0.00101916]
[1738769994253,0.203824,98124.0,98111.0,0.10250365]
[1738769994447,0.00022428,98144.0,98111.0,0.10250365]
[1738769994651,0.152878,98118.0,98111.0,0.10250365]
[1738769994858,0.152879,98117.0,98111.0,0.10250365]
[1738769995520,0.152873,98121.0,98111.0,0.10250365]
[1738769995696,0.00022428,98144.0,98111.0,0.25640979]
[1738769995697,0.152872,98122.0,98111.0,0.25640979]
[1738769995855,0.152872,98122.0,98112.0,0.00101913]
[1738769996063,0.00022428,98144.0,98113.0,0.10250365]
[1738769996336,0.203824,98124.0,98113.0,0.10250365]
[1738769996720,0.15,98141.0,98113.0,0.10250365]
[1738769996962,0.00022428,98144.0,98113.0,0.10250365]
[1738769997260,0.203802,98135.0,98113.0,0.10250365]
[1738769997396,0.152869,98123.0,98113.0,0.25538665]
[1738769997597,0.152871,98122.0,98113.0,0.10250365]
[1738769997898,0.152867,98125.0,98114.0,0.152883]
[1738769998143,0.203815,98128.0,98115.0,0.10352278]
[1738769998374,0.00022428,98144.0,98115.0,0.10352278]
[1738769998375,0.152863,98127.0,98117.0,0.152878]
[1738769998686,0.00022428,98121.0,98118.0,0.10250365]
[1738770000570,0.152875,98119.0,98118.0,0.10250365]
[1738770001194,0.15309728,98121.0,98118.0,0.10250365]
[1738770001402,0.00022428,98121.0,98118.0,0.10250365]
[1738770001771,0.152875,98119.0,98118.0,0.10250365]
[1738770004388,0.152902,98102.0,98101.0,0.00046671]
[1738770004534,0.152902,98102.0,98101.0,0.10297036]
[1738770004891,0.203856,98109.0,98101.0,0.10297036]
[1738770005057,0.01038022,98121.0,98102.0,0.10250365]
[1738770005219,0.00022428,98121.0,98102.0,0.10250365]
[1738770005435,0.00022428,98121.0,98105.0,0.0806]
[1738770005629,0.00022428,98121.0,98110.0,0.152888]
[1738770005630,0.152877,98118.0,98110.0,0.152888]
[1738770005835,0.152877,98118.0,98111.0,0.10250365]
[1738770006113,0.00022428,98121.0,98111.0,0.10250365]
[1738770006265,0.00022428,98121.0,98112.0,0.00101913]
[1738770006465,0.00022428,98121.0,98113.0,0.10250365]
[1738770006869,0.152883,98114.0,98113.0,0.10250365]
[1738770007067,0.00022428,98121.0,98113.0,0.10250365]
[1738770007270,0.152877,98118.0,98113.0,0.10250365]
[1738770008011,0.152881,98115.0,98113.0,0.10250365]
[1738770008202,0.152883,98114.0,98113.0,0.10250365]
[1738770008965,0.203832,98120.0,98113.0,0.10250365]
[1738770009166,0.00022428,98121.0,98113.0,0.10250365]
[1738770009363,0.152881,98116.0,98113.0,0.10250365]
[1738770009572,0.152878,98118.0,98113.0,0.10250365]
[1738770009792,0.00022428,98121.0,98114.0,0.01894864]
[1738770010007,0.152877,98118.0,98115.0,0.10250365]
[1738770010211,0.203832,98120.0,98115.0,0.10250365]
[1738770010414,0.15288,98116.0,98115.0,0.10250365]
[1738770010776,0.203839,98117.0,98096.0,1.02127312]
[1738770010979,0.152889,98110.0,98102.0,0.25540465]
[1738770011342,0.00022428,98121.0,98102.0,0.10250365]
[1738770011558,0.1529,98103.0,98102.0,0.10250365]
[1738770011959,0.15248593,98103.0,98102.0,0.10250365]
[1738770012136,0.15237731,98103.0,98102.0,0.10250365]
[1738770014646,0.15237731,98103.0,98102.0,0.12146986]
[1738770014950,0.203844,98114.0,98102.0,0.12146986]
[1738770014951,0.152892,98109.0,98102.0,0.12146986]
[1738770015086,0.203832,98120.0,98102.0,0.12146986]
[1738770015301,0.01029182,98121.0,98103.0,0.01896621]
[1738770015484,0.152897,98105.0,98104.0,0.10250365]
[1738770016595,0.152897,98105.0,98104.0,0.12146986]
[1738770017297,0.152897,98105.0,98104.0,0.10250365]
[1738770018289,0.15248293,98105.0,98104.0,0.10250365]
[1738770019020,0.01003469,98108.0,98101.0,0.00046671]
[1738770019176,0.152902,98102.0,98101.0,0.00046671]
[1738770020992,0.152902,98102.0,98101.0,0.10297036]
[1738770022310,0.203845,98114.0,98101.0,0.10297036]
[1738770022520,0.1529,98103.0,98102.0,0.10250365]
[1738770024335,0.1529,98103.0,98102.0,0.10261045]
[1738770026123,0.15248593,98103.0,98102.0,0.10261045]
[1738770026659,0.203809,98131.0,98102.0,1.12388357]
[1738770026923,0.203832,98120.0,98103.0,0.077]
[1738770027120,0.152892,98109.0,98104.0,0.10250365]
[1738770027458,0.152892,98108.0,98104.0,0.10250365]
[1738770028536,0.152897,98105.0,98104.0,0.10250365]
[1738770028737,0.152895,98107.0,98104.0,0.10250365]
[1738770028931,0.152897,98105.0,98104.0,0.10250365]
[1738770030402,0.152891,98109.0,98104.0,0.10250365]
[1738770030634,0.152897,98105.0,98104.0,0.10250365]
[1738770031208,0.01041333,98114.0,98102.0,0.0001068]
[1738770031209,0.1529,98103.0,98102.0,0.0001068]
[1738770032088,0.15939423,98103.0,98102.0,0.0001068]
[1738770033031,0.22051423,98103.0,98102.0,0.0001068]
[1738770033260,0.15939423,98103.0,98102.0,0.0001068]
[1738770035084,0.23469423,98103.0,98102.0,0.0001068]
[1738770036469,0.15939423,98103.0,98102.0,0.0001068]
[1738770037628,0.18239423,98103.0,98102.0,0.0001068]
[1738770037829,0.33239423,98103.0,98102.0,0.0001068]
[1738770038628,0.33239423,98103.0,98101.0,5.1e-07]
[1738770038629,0.23412,98102.0,98101.0,5.1e-07]
[1738770038830,0.449519,98091.0,98090.0,0.0001068]
[1738770039000,0.55202265,98091.0,98090.0,0.0001068]
[1738770039204,0.61827558,98091.0,98090.0,2.4e-07]
[1738770039405,0.62827558,98091.0,98090.0,2.4e-07]
[1738770039727,0.61827558,98091.0,98090.0,2.4e-07]
[1738770039951,0.55715558,98091.0,98090.0,2.4e-07]
[1738770040571,0.56743137,98091.0,98090.0,2.4e-07]
[1738770041520,0.44192772,98091.0,98090.0,2.4e-07]
[1738770041743,0.39512772,98091.0,98090.0,2.4e-07]
[1738770042146,0.31832772,98091.0,98090.0,2.4e-07]
[1738770042546,0.34132772,98091.0,98090.0,2.4e-07]
[1738770042912,0.44383137,98091.0,98090.0,2.4e-07]
[1738770043302,0.152948,98072.0,98066.0,0.0146654]
[1738770043507,0.152948,98072.0,98071.0,0.00015361]
[1738770043750,0.15805227,98072.0,98071.0,0.00015361]
[1738770046090,0.16855973,98072.0,98071.0,0.00015361]
[1738770050783,0.25267973,98072.0,98071.0,0.00015361]
[1738770051194,0.48267973,98072.0,98071.0,0.00015361]
[1738770055684,0.50312712,98072.0,98071.0,0.00015361]
[1738770056450,0.31855973,98072.0,98071.0,0.00015361]
[1738770058067,0.22967973,98072.0,98071.0,0.00015361]
[1738770058189,0.16855973,98072.0,98071.0,0.00015361]
[1738770059105,0.15805227,98072.0,98071.0,0.00015361]
[1738770059361,0.15805227,98072.0,98071.0,0.10265726]
[1738770061604,0.15805227,98072.0,98071.0,0.00015361]
[1738770064343,0.36917227,98072.0,98071.0,0.00015361]
[1738770064547,0.39217227,98072.0,98071.0,0.00015361]
[1738770064806,0.58794362,98072.0,98071.0,0.00015361]
[1738770065002,0.49467592,98072.0,98071.0,0.00015361]
[1738770066235,0.36917227,98072.0,98071.0,0.00015361]
[1738770066435,0.15805227,98072.0,98071.0,0.00015361]
[1738770067619,0.00510427,98072.0,98071.0,0.37920726]
[1738770067797,0.00510427,98072.0,98071.0,0.22625726]
[1738770067999,0.152944,98075.0,98071.0,0.22625726]
[1738770068211,0.152944,98075.0,98072.0,0.10250365]
[1738770068518,0.20413628,98082.0,98072.0,0.10250365]
[1738770068519,0.00022428,98082.0,98072.0,0.10250365]
[1738770068738,0.152937,98080.0,98072.0,0.25545065]
[1738770068946,0.152934,98081.0,98074.0,0.152945]
[1738770069115,0.152934,98081.0,98075.0,0.10250365]
[1738770070094,0.00022428,98082.0,98081.0,0.152934]
[1738770070300,0.00022428,98082.0,98081.0,0.25543765]
[1738770070907,0.15315728,98082.0,98081.0,0.10250365]
[1738770071258,0.00022428,98082.0,98081.0,0.10250365]
[1738770071828,0.152948,98072.0,98071.0,0.12375361]
[1738770072028,0.152948,98072.0,98071.0,0.00015361]
[1738770073288,0.01043106,98082.0,98072.0,0.356879]
[1738770073289,0.00022428,98082.0,98072.0,0.356879]
[1738770073488,0.00022428,98082.0,98073.0,0.25544965]
[1738770073632,0.152934,98081.0,98074.0,0.152945]
[1738770073833,0.00392994,98081.0,98075.0,0.10250365]
[1738770074340,0.00392994,98081.0,98080.0,0.232036]
[1738770074540,0.00392994,98081.0,98080.0,0.18160365]
[1738770074764,0.00392994,98081.0,98080.0,0.38143965]
[1738770074938,0.00022428,98082.0,98081.0,0.152934]
[1738770075092,0.00022428,98082.0,98081.0,0.10250365]
[1738770075294,0.00022428,98082.0,98081.0,0.18202307]
[1738770075498,0.00022428,98082.0,98081.0,0.36564182]
[1738770075902,0.00022428,98082.0,98081.0,1.38100425]
[1738770076134,0.00022428,98082.0,98081.0,1.53100425]
[1738770076341,0.00022428,98082.0,98081.0,1.54146993]
[1738770078028,0.00022428,98082.0,98081.0,1.56235798]
[1738770078231,0.06221503,98109.0,98103.0,0.1529]
[1738770078475,0.06221503,98109.0,98104.0,0.10250365]
[1738770078674,0.00394294,98108.0,98105.0,0.152897]
[1738770078881,0.152886,98112.0,98105.0,0.152897]
[1738770078882,0.152886,98112.0,98106.0,0.10250365]
[1738770079263,0.152888,98111.0,98106.0,0.10250365]
[1738770079628,0.0039457,98111.0,98110.0,0.152889]
[1738770079854,0.0039457,98111.0,98110.0,0.25641174]
[1738770080057,0.00046668,98112.0,98111.0,0.152888]
[1738770080261,0.00046668,98112.0,98111.0,0.25539165]
[1738770080791,0.00046668,98112.0,98111.0,0.48659165]
[1738770080921,0.00046668,98112.0,98111.0,0.50189608]
[1738770081132,0.00022428,98144.0,98120.0,0.302874]
[1738770081327,0.00022428,98144.0,98120.0,2.473614]
[1738770081711,0.00022428,98144.0,98120.0,2.5719132]
[1738770081973,0.00022428,98144.0,98120.0,2.60347464]
[1738770082175,0.00022428,98144.0,98120.0,2.6237656]
[1738770082499,0.00022428,98144.0,98120.0,2.6467656]
[1738770082649,0.00022428,98144.0,98120.0,2.62520416]
[1738770082859,0.00022428,98144.0,98120.0,2.63541826]
[1738770083225,0.13449184,98155.0,98148.0,0.15283]
[1738770083428,0.13449184,98155.0,98149.0,0.10250365]
[1738770083627,0.152824,98152.0,98149.0,0.10250365]
[1738770083830,0.152827,98150.0,98149.0,0.10250365]
[1738770084465,0.15681504,98150.0,98149.0,0.10250365]
[1738770085004,0.152835,98145.0,98144.0,1.02127312]
[1738770085212,0.15683101,98145.0,98144.0,0.10250365]
[1738770085631,0.00399601,98145.0,98126.0,1.02127312]
[1738770085773,0.152853,98134.0,98127.0,0.25536565]
[1738770085976,0.01038623,98145.0,98127.0,0.10250365]
[1738770086186,0.152854,98133.0,98127.0,0.10250365]
[1738770086387,0.15,98153.0,98127.0,0.10250365]
[1738770086586,0.152856,98132.0,98127.0,0.10250365]
[1738770087140,0.152849,98137.0,98127.0,0.10250365]
[1738770087389,0.203791,98140.0,98127.0,0.10250365]
[1738770087578,0.203803,98134.0,98127.0,0.10250365]
[1738770087799,0.152861,98128.0,98127.0,0.10250365]
[1738770087972,0.15684136,98128.0,98127.0,0.10250365]
[1738770088181,0.15684136,98128.0,98100.0,0.31761067]
[1738770088182,0.152891,98109.0,98104.0,0.02015564]
[1738770088382,0.15685385,98109.0,98108.0,0.10250365]
[1738770089658,0.00396285,98109.0,98089.0,0.0809]
[1738770089893,0.00396285,98109.0,98090.0,0.10250365]
[1738770089894,0.152918,98092.0,98090.0,0.10250365]
[1738770090460,0.00472595,98091.0,98090.0,0.10250365]
[1738770090794,0.152919,98091.0,98090.0,0.10250365]
[1738770091017,0.00393018,98091.0,98090.0,0.10250365]
[1738770091196,0.0489,98130.0,98090.0,0.10250365]
[1738770091396,0.0489,98130.0,98091.0,0.10352298]
[1738770091397,0.15,98124.0,98091.0,0.10352298]
[1738770091606,0.00474895,98123.0,98092.0,0.00101927]
[1738770091811,0.152896,98106.0,98098.0,0.152907]
[1738770092033,0.00473169,98105.0,98099.0,0.10250365]
[1738770092716,0.152896,98106.0,98099.0,0.10250365]
[1738770092911,0.203846,98113.0,98099.0,0.10250365]
[1738770092912,0.152891,98110.0,98099.0,0.10250365]
[1738770093282,0.00473612,98109.0,98099.0,0.10250365]
[1738770093480,0.15762712,98109.0,98102.0,0.152901]
[1738770093681,0.152898,98104.0,98103.0,0.10250365]
[1738770094037,0.15762859,98104.0,98103.0,0.10250365]
[1738770094244,0.00473059,98104.0,98095.0,1.02127312]
[1738770094438,0.203874,98100.0,98096.0,0.10250365]
[1738770094618,0.152909,98097.0,98096.0,0.10250365]
[1738770095034,0.15684471,98097.0,98096.0,0.10250365]
[1738770097899,0.00393571,98097.0,98096.0,0.10250365]
[1738770098103,0.00393571,98097.0,98096.0,0.25541465]
[1738770098326,0.01001544,98115.0,98096.0,0.10250365]
[1738770098527,0.15,98116.0,98096.0,0.10352291]
[1738770098767,0.00427425,98114.0,98099.0,0.152905]
[1738770098961,0.152897,98105.0,98100.0,0.10250365]
[1738770099507,0.152897,98105.0,98100.0,1.12377677]
[1738770099659,0.152903,98101.0,98100.0,1.12377677]
[1738770099824,0.152919,98091.0,98090.0,0.0001068]
[1738770100027,0.15716782,98091.0,98090.0,0.10261045]
[1738770101047,0.00424882,98091.0,98090.0,0.10261045]
[1738770101246,0.152919,98091.0,98090.0,0.10261045]
[1738770101607,0.15716118,98091.0,98090.0,0.10261045]
[1738770103015,0.00424218,98091.0,98090.0,0.10261045]
[1738770103213,0.184881,98096.0,98090.0,0.10261045]
[1738770103432,0.152916,98093.0,98091.0,0.10250365]
[1738770103828,0.00424331,98092.0,98091.0,0.10250365]
[1738770104514,0.152911,98096.0,98091.0,0.10250365]
[1738770104711,0.00424331,98092.0,98091.0,0.10250365]
[1738770104914,0.152917,98092.0,98091.0,0.10250365]
[1738770105329,0.264962,98115.0,98094.0,0.152914]
[1738770105330,0.356727,98114.0,98094.0,0.152914]
[1738770105513,0.06112,98115.0,98095.0,0.10250365]
[1738770105715,0.152909,98098.0,98095.0,0.10250365]
[1738770106053,0.152908,98098.0,98095.0,0.10250365]
[1738770106260,0.203844,98114.0,98095.0,0.10250365]
[1738770106466,0.06112,98117.0,98095.0,0.10250365]
[1738770106638,0.203867,98103.0,98095.0,0.10250365]
[1738770106844,0.152911,98096.0,98095.0,0.10250365]
[1738770108356,0.133911,98096.0,98095.0,0.10250365]
[1738770110111,0.133911,98096.0,98095.0,0.06070365]
[1738770110287,0.203865,98104.0,98095.0,0.06070365]
[1738770110493,0.203858,98108.0,98095.0,0.06070365]
[1738770110654,0.152909,98098.0,98095.0,0.06070365]
[1738770111016,0.152908,98098.0,98095.0,0.06070365]
[1738770111219,0.06134428,98127.0,98095.0,0.06070365]
[1738770111355,0.01044953,98123.0,98098.0,0.152907]
[1738770111560,0.06134428,98127.0,98099.0,0.10250365]
[1738770111561,0.08076647,98122.0,98099.0,0.10250365]
[1738770111762,0.08076647,98122.0,98090.0,0.0001068]
[1738770111763,0.152919,98091.0,98090.0,0.0001068]
[1738770112585,0.1568116,98091.0,98090.0,0.0001068]
[1738770114914,0.14701887,98091.0,98090.0,0.0001068]
[1738770122647,0.0038926,98091.0,98090.0,0.10261045]
[1738770122848,0.152848,98137.0,98116.0,0.23288]
[1738770123047,0.203771,98150.0,98116.0,1.40205677]
[1738770123276,0.203758,98156.0,98116.0,1.40205677]
[1738770123437,0.203776,98147.0,98116.0,1.43377482]
[1738770123632,0.203758,98156.0,98116.0,1.43377482]
[1738770123833,0.15283,98149.0,98116.0,1.58377482]
[1738770124090,0.20377,98150.0,98116.0,1.58377482]
[1738770124470,0.08999173,98152.0,98116.0,1.58377482]
[1738770125008,0.29375773,98152.0,98116.0,1.58377482]
[1738770125146,0.29375773,98152.0,98116.0,1.61440324]
[1738770125380,0.08999173,98152.0,98116.0,1.63740324]
[1738770125590,0.08999173,98152.0,98116.0,1.65740324]
[1738770125993,0.08999173,98152.0,98126.0,0.302864]
[1738770126202,0.08999173,98152.0,98126.0,2.47372125]
[1738770126832,0.08999173,98152.0,98126.0,2.4926817]
[1738770127100,0.203779,98146.0,98126.0,1.47731927]
[1738770127302,0.00027091,98127.0,98126.0,1.47731927]
[1738770127506,0.00027091,98127.0,98126.0,1.44560122]
[1738770127811,0.00027091,98127.0,98126.0,1.47721449]
[1738770128010,0.00027091,98127.0,98126.0,1.42664077]
[1738770128501,0.18504891,98146.0,98127.0,0.15]
[1738770128666,0.01027407,98151.0,98132.0,0.152854]
[1738770128848,0.152833,98147.0,98136.0,0.152848]
[1738770129027,0.00459197,98146.0,98138.0,0.152844]
[1738770129228,0.152831,98148.0,98139.0,0.10250365]
[1738770129461,0.00459381,98147.0,98139.0,0.10250365]
[1738770130537,0.00459381,98147.0,98140.0,0.01893431]
[1738770130736,0.00459381,98147.0,98141.0,0.10250365]
[1738770130945,0.203709,98179.0,98147.0,0.15283]
[1738770131239,0.152822,98154.0,98148.0,0.10250365]
[1738770131578,0.00013991,98179.0,98148.0,0.12143796]
[1738770131778,0.0101428,98179.0,98148.0,0.12143796]
[1738770131979,0.152823,98153.0,98148.0,0.12143796]
[1738770132180,0.152822,98153.0,98148.0,0.12143796]
[1738770132386,0.152822,98153.0,98148.0,0.10250365]
[1738770132995,0.152828,98149.0,98148.0,0.10250365]
[1738770133383,0.13730004,98149.0,98148.0,0.10250365]
[1738770133790,0.203773,98148.0,98127.0,0.152862]
[1738770133964,0.152852,98134.0,98133.0,0.10250365]
[1738770134368,0.152849,98136.0,98133.0,0.10250365]
[1738770134571,0.00345132,98134.0,98133.0,0.10250365]
[1738770134821,0.00022428,98146.0,98133.0,0.10250365]
[1738770134942,0.15745376,98134.0,98133.0,0.10250365]
[1738770135142,0.152852,98134.0,98133.0,0.10250365]
[1738770135479,0.00460176,98134.0,98133.0,0.10250365]
[1738770135822,0.00022428,98146.0,98133.0,0.10250365]
[1738770135932,0.15305828,98146.0,98139.0,0.152843]
[1738770136139,0.152835,98145.0,98140.0,0.10250365]
[1738770136526,0.00461449,98145.0,98140.0,0.10250365]
[1738770136703,0.00461449,98145.0,98144.0,0.152836]
[1738770136911,0.00022428,98146.0,98144.0,0.10250365]
[1738770137151,0.00022428,98146.0,98145.0,0.25533865]
[1738770138526,0.00022428,98146.0,98145.0,0.27424082]
[1738770139121,0.00022428,98146.0,98145.0,0.42424082]
[1738770142779,0.00022428,98146.0,98145.0,0.40533865]
[1738770143279,0.10952,98194.0,98164.0,0.152805]
[1738770143280,0.203684,98191.0,98164.0,0.152805]
[1738770143457,0.203684,98191.0,98149.0,0.20377]
[1738770143458,0.152796,98170.0,98165.0,0.10250365]
[1738770143922,0.00280767,98169.0,98165.0,0.10250365]
[1738770144382,0.152797,98169.0,98165.0,0.10250365]
[1738770144584,0.00293318,98168.0,98165.0,0.10250365]
[1738770144785,0.00013994,98171.0,98165.0,0.10250365]
[1738770144984,0.152802,98166.0,98165.0,0.10250365]
[1738770145230,0.152805,98164.0,98163.0,1.02127312]
[1738770145475,0.15573376,98164.0,98163.0,1.12377677]
[1738770145657,0.152805,98164.0,98163.0,1.12377677]
[1738770145976,0.00292876,98164.0,98140.0,0.1673097]
[1738770146202,0.00292876,98164.0,98139.0,1.02127312]
[1738770146203,0.00292876,98164.0,98141.0,0.10250365]
[1738770146414,0.152821,98154.0,98147.0,0.15283]
[1738770146592,0.152822,98153.0,98148.0,0.10250365]
[1738770146814,0.00291405,98153.0,98148.0,0.10250365]
[1738770147016,0.00291405,98153.0,98152.0,0.152824]
[1738770147171,0.00291405,98153.0,98152.0,0.25532765]
[1738770147379,0.203719,98175.0,98152.0,0.10250365]
[1738770147603,0.152815,98158.0,98153.0,0.10250365]
[1738770147806,0.152821,98154.0,98153.0,0.10250365]
[1738770148178,0.15573494,98154.0,98153.0,0.10250365]
[1738770149039,0.152839,98142.0,98140.0,0.00022428]
[1738770149377,0.152839,98142.0,98141.0,0.10250365]
[1738770149508,0.152837,98144.0,98141.0,0.10250365]
[1738770149710,0.00289957,98142.0,98141.0,0.10250365]
[1738770149918,0.1244,98158.0,98141.0,0.10250365]
[1738770150116,0.152838,98143.0,98141.0,0.10250365]
[1738770150330,0.00291614,98157.0,98141.0,0.10250365]
[1738770150501,0.0777068,98169.0,98141.0,0.25534465]
[1738770150502,0.00289957,98142.0,98141.0,0.25534465]
[1738770150699,0.152825,98152.0,98145.0,0.152834]
[1738770150996,0.00290243,98151.0,98146.0,0.25533665]
[1738770151313,0.203762,98154.0,98147.0,0.15283]
[1738770151517,0.203762,98154.0,98148.0,0.10250365]
[1738770151755,0.00290464,98153.0,98148.0,0.10250365]
[1738770151937,0.152823,98153.0,98148.0,0.10250365]
[1738770152146,0.15572753,98152.0,98148.0,0.10250365]
[1738770152504,0.00290353,98152.0,98148.0,0.10250365]
[1738770152947,0.152823,98153.0,98148.0,0.25533365]
[1738770153266,0.00290353,98152.0,98148.0,0.10250365]
[1738770153561,0.152825,98151.0,98148.0,0.10250365]
[1738770154594,0.203734,98167.0,98148.0,0.10250365]
[1738770154721,0.152816,98157.0,98148.0,0.10250365]
[1738770154928,0.15282,98155.0,98149.0,0.152827]
[1738770155270,0.01011622,98169.0,98150.0,0.10250365]
[1738770155446,0.152815,98158.0,98150.0,0.10250365]
[1738770155724,0.152814,98159.0,98150.0,0.30627165]
[1738770155885,0.152814,98159.0,98151.0,0.22278622]
[1738770156087,0.152814,98159.0,98153.0,0.152821]
[1738770156281,0.152814,98159.0,98154.0,0.10250365]
[1738770156486,0.01011622,98169.0,98154.0,0.10250365]
[1738770156684,0.152804,98165.0,98158.0,0.152813]
[1738770156886,0.152808,98163.0,98159.0,0.10250365]
[1738770157067,0.152806,98164.0,98159.0,0.10250365]
[1738770157252,0.0001068,98169.0,98159.0,0.10250365]
[1738770157253,0.1529048,98169.0,98160.0,0.356559]
[1738770157448,0.1529048,98169.0,98155.0,0.01901922]
[1738770157449,0.0001068,98169.0,98162.0,0.152808]
[1738770157653,0.0001068,98169.0,98163.0,0.10250365]
[1738770157853,0.0001068,98169.0,98163.0,0.25530965]
[1738770158106,0.1529048,98169.0,98163.0,0.25530965]
[1738770158312,0.20386594,98171.0,98163.0,0.25530965]
[1738770158471,0.152796,98170.0,98164.0,0.01901922]
[1738770158656,0.152796,98170.0,98165.0,0.10250365]
[1738770159065,0.00013994,98171.0,98166.0,0.152802]
[1738770159277,0.00013994,98171.0,98167.0,0.12152287]
[1738770159497,0.152796,98170.0,98167.0,0.12152287]
[1738770159879,0.00013994,98171.0,98167.0,0.12152287]
[1738770160293,0.00013994,98171.0,98168.0,0.01901922]
[1738770160464,0.15293494,98171.0,98169.0,0.10250365]
[1738770160989,0.152796,98170.0,98169.0,0.10250365]
[1738770161716,0.152796,98170.0,98169.0,0.12152287]
[1738770161919,0.00013994,98171.0,98170.0,0.152796]
[1738770162119,0.00013994,98171.0,98170.0,0.25529965]
[1738770162325,0.00013994,98171.0,98170.0,0.1341825]
[1738770162528,0.00013994,98171.0,98170.0,0.10250365]
[1738770163070,0.00013994,98171.0,98170.0,0.15194458]
[1738770163415,0.152783,98179.0,98173.0,0.152791]
[1738770163637,0.00022491,98211.0,98174.0,0.10250365]
[1738770163842,0.152785,98177.0,98174.0,0.10250365]
[1738770163978,0.15,98190.0,98175.0,0.04944093]
[1738770164175,0.15,98190.0,98176.0,0.10250365]
[1738770164394,0.152785,98177.0,98176.0,0.10250365]
[1738770164601,0.152782,98179.0,98176.0,0.10250365]
[1738770164800,0.203698,98185.0,98176.0,0.10250365]
[1738770164999,0.203684,98191.0,98176.0,0.10250365]
[1738770165368,0.152782,98179.0,98176.0,0.10250365]
[1738770165478,0.152783,98179.0,98177.0,0.04944093]
[1738770165678,0.152783,98179.0,98178.0,0.10250365]
[1738770165885,0.356485,98181.0,98178.0,0.10250365]
[1738770166146,0.152782,98179.0,98178.0,0.10250365]
[1738770166561,0.152782,98179.0,98178.0,0.12152287]
[1738770167642,0.152782,98179.0,98178.0,0.15194152]
[1738770170732,0.152781,98180.0,98178.0,0.15194152]
[1738770171072,0.203686,98190.0,98178.0,0.15194152]
[1738770171249,0.203686,98190.0,98179.0,0.04943787]
[1738770171449,0.0002245,98208.0,98179.0,0.04943787]
[1738770171450,0.00022428,98204.0,98180.0,0.10250365]
[1738770171650,0.203665,98200.0,98180.0,0.10250365]
[1738770171949,0.01051707,98202.0,98181.0,0.03169632]
[1738770172163,0.152771,98187.0,98182.0,0.10250365]
[1738770172358,0.152771,98187.0,98183.0,0.03169632]
[1738770172704,0.152771,98187.0,98184.0,0.10250365]
[1738770172863,0.152771,98187.0,98184.0,0.15194152]
[1738770173245,0.152767,98189.0,98184.0,0.15194152]
[1738770173445,0.15277,98187.0,98184.0,0.14194152]
[1738770173983,0.20367,98198.0,98184.0,0.14194152]
[1738770174159,0.152767,98189.0,98185.0,0.04943787]
[1738770174350,0.00036439,98202.0,98186.0,0.10250365]
[1738770174551,0.152769,98188.0,98186.0,0.10250365]
[1738770175190,0.152769,98188.0,98187.0,0.01901922]
[1738770175398,0.203679,98194.0,98187.0,0.12152287]
[1738770175636,0.152767,98189.0,98188.0,0.10250365]
[1738770176179,0.152767,98189.0,98188.0,0.12152287]